lending/lending_fUSD_20250122
["ID","MTS","AMOUNT","RATE_DAILY","PERIOD"]
[349989436,1737551450488,-500.0,0.00021894,2]
[349989437,1737551450498,-500.0,0.00021894,2]
[349989438,1737551450508,-500.0,0.00021894,2]
[349989439,1737551450518,-500.0,0.00021894,2]
[349989440,1737551450527,-500.0,0.00021894,2]
[349989441,1737551450537,-461.80917697,0.00021894,2]
[349989442,1737551450546,-500.0,0.00021894,2]
[349989443,1737551450555,-500.0,0.00021894,2]
[349989444,1737551450565,-500.0,0.00021894,2]
[349989445,1737551450574,-533.72,0.00021894,2]
[349989446,1737551450583,-500.0,0.00021894,2]
[349989447,1737551450592,-500.0,0.00021894,2]
[349989448,1737551450601,-500.0,0.00021894,2]
[349989449,1737551450611,-570.58,0.00021894,2]
[349989450,1737551450620,-573.37,0.00021894,2]
[349989451,1737551450630,-32.3804611,0.00021894,2]
[349989452,1737551450643,-467.6195389,0.00021894,2]
[349989453,1737551450652,-538.46,0.00021894,2]
[349989454,1737551450662,-500.0,0.00021894,2]
[349989455,1737551450672,-505.8,0.00021894,2]
[349989456,1737551450682,-500.0,0.00021894,2]
[349989457,1737551450691,-500.0,0.00021894,2]
[349989458,1737551450702,-500.0,0.00021894,2]
[349989459,1737551450712,-500.0,0.00021894,2]
[349989460,1737551450722,-500.0,0.00021894,2]
[349989461,1737551450731,-500.0,0.00021894,2]
[349989462,1737551450741,-500.0,0.00021894,2]
[349989463,1737551450750,-500.0,0.00021894,2]
[349989464,1737551450759,-500.0,0.00021894,2]
[349989465,1737551450769,-500.0,0.00021894,2]
[349989466,1737551450778,-500.0,0.00021894,2]
[349989467,1737551450787,-645.83,0.00021894,2]
[349989468,1737551450797,-868.83,0.00021894,2]
[349989469,1737551450806,-500.0,0.00021894,2]
[349989470,1737551450815,-603.37,0.00021894,2]
[349989471,1737551450825,-500.0,0.00021894,2]
[349989472,1737551450834,-784.73,0.00021894,2]
[349989473,1737551450843,-915.68,0.00021894,2]
[349989474,1737551450853,-900.71,0.00021894,2]
[349989475,1737551450865,-1004.12,0.00021894,2]
[349989476,1737551450875,-500.0,0.00021894,2]
[349989477,1737551450885,-2221.21,0.00021894,2]
[349989478,1737551450895,-782.1,0.00021894,2]
[349989479,1737551450906,-500.0,0.00021894,2]
[349989480,1737551450915,-500.0,0.00021894,2]
[349989481,1737551450927,-3849.84,0.00021894,2]
[349989482,1737551450937,-1052.31,0.00021894,2]
[349989483,1737551450947,-500.0,0.00021894,2]
[349989484,1737551450956,-500.0,0.00021894,2]
[349989485,1737551450966,-537.3,0.00021894,2]
[349989486,1737551450975,-500.0,0.00021894,2]
[349989487,1737551450984,-1267.88,0.00021894,2]
[349989488,1737551450994,-500.0,0.00021894,2]
[349989489,1737551451003,-533.31,0.00021894,2]
[349989490,1737551451013,-2150.61,0.00021894,2]
[349989491,1737551451023,-1192.51,0.00021894,2]
[349989492,1737551451033,-696.52,0.00021894,2]
[349989493,1737551451042,-753.77,0.00021894,2]
[349989494,1737551451051,-500.0,0.00021894,2]
[349989495,1737551451061,-617.36,0.00021894,2]
[349989496,1737551451070,-1198.51,0.00021894,2]
[349989497,1737551451080,-733.92,0.00021894,2]
[349989498,1737551451089,-500.0,0.00021894,2]
[349989499,1737551451099,-500.0,0.00021894,2]
[349989500,1737551451108,-500.0,0.00021894,2]
[349989501,1737551451118,-800.92,0.00021894,2]
[349989502,1737551451128,-665.5,0.00021894,2]
[349989503,1737551451139,-686.04,0.00021894,2]
[349989504,1737551451148,-500.0,0.00021894,2]
[349989505,1737551451160,-2608.89,0.00021894,2]
[349989506,1737551451315,-500.0,0.00021894,2]
[349989507,1737551451329,-205.34,0.00021894,2]
[349989508,1737551451339,-500.0,0.00021894,2]
[349989509,1737551451349,-1048.97,0.00021894,2]
[349989510,1737551451359,-500.0,0.00021894,2]
[349989511,1737551451369,-614.1,0.00021894,2]
[349989512,1737551451378,-1206.48,0.00021894,2]
[349989513,1737551451387,-500.0,0.00021894,2]
[349989514,1737551451398,-905.68047004,0.00021894,2]
[349989515,1737551451407,-500.0,0.00021894,2]
[349989516,1737551451417,-1009.96,0.00021894,2]
[349989517,1737551451429,-597.96273876,0.00021894,2]
[349989518,1737551451438,-1098.32,0.00021894,2]
[349989519,1737551451448,-500.0,0.00021894,2]
[349989520,1737551451459,-198.69352068,0.00021894,2]
[349989521,1737551451468,-500.0,0.00021894,2]
[349989522,1737551451478,-500.0,0.00021894,2]
[349989523,1737551451488,-500.0,0.00021894,2]
[349989524,1737551451498,-500.0,0.00021894,2]
[349989525,1737551451507,-952.51,0.00021894,2]
[349989526,1737551451517,-400.41379246,0.00021894,2]
[349989527,1737551451527,-500.0,0.00021895,2]
[349989528,1737551451537,-500.0,0.00021895,2]
[349989529,1737551451546,-500.0,0.00021895,2]
[349989530,1737551451556,-500.0,0.00021895,2]
[349989531,1737551451565,-500.0,0.00021895,2]
[349989532,1737551451574,-500.0,0.00021895,2]
[349989533,1737551451584,-500.0,0.00021895,2]
[349989534,1737551451594,-500.0,0.00021895,2]
[349989535,1737551451603,-500.0,0.00021895,2]
[349989536,1737551451612,-500.0,0.00021895,2]
[349989537,1737551451622,-500.0,0.00021895,2]
[349989538,1737551451631,-500.0,0.00021895,2]
[349989539,1737551451640,-500.0,0.00021895,2]
[349989540,1737551451649,-500.0,0.00021895,2]
[349989541,1737551451658,-500.0,0.00021895,2]
[349989542,1737551451668,-500.0,0.00021895,2]
[349989543,1737551451679,-500.0,0.00021895,2]
[349989544,1737551451688,-500.0,0.00021895,2]
[349989545,1737551451697,-500.0,0.00021895,2]
[349989546,1737551451708,-500.0,0.00021895,2]
[349989547,1737551451718,-509.19,0.00021895,2]
[349989548,1737551451727,-500.0,0.00021895,2]
[349989549,1737551451737,-46650.70191419,0.000219,5]
[349989550,1737551451747,-1818.6221345,0.000219,3]
[349989551,1737551451756,-1875.05,0.000219,2]
[349989552,1737551451765,-321.26614184,0.000219,2]
[349989553,1737551451774,-535.06301335,0.000219,2]
[349989554,1737551451783,-161.30882825,0.000219,2]
[349989555,1737551451792,-161.30882823,0.000219,2]
[349989556,1737551451801,-161.30882823,0.000219,2]
[349989557,1737551451811,-161.30882823,0.000219,2]
[349989558,1737551451820,-161.30882823,0.000219,2]
[349989559,1737551451830,-152.13796887,0.000219,2]
[349989560,1737551451839,-905.68047004,0.000219,2]
[349989561,1737551451848,-227.79067551,0.000219,3]
[349989562,1737551451858,-1283.3409928,0.000219,2]
[349989563,1737551451871,-150.0,0.00021914,2]
[349989564,1737551451880,-500.0,0.00021917,2]
[349989565,1737551451890,-500.0,0.00021917,2]
[349989566,1737551451900,-500.0,0.00021917,2]
[349989567,1737551451911,-500.0,0.00021917,2]
[349989568,1737551451922,-500.0,0.00021917,2]
[349989569,1737551451931,-500.0,0.00021917,2]
[349989570,1737551451940,-500.0,0.00021917,2]
[349989571,1737551451950,-500.0,0.00021917,2]
[349989572,1737551451960,-500.0,0.00021917,2]
[349989573,1737551451969,-500.0,0.00021917,2]
[349989574,1737551451979,-500.0,0.00021917,2]
[349989575,1737551451988,-500.0,0.00021917,2]
[349989576,1737551451998,-150.0,0.00021918,2]
[349989577,1737551452007,-150.0,0.00021919,2]
[349989578,1737551452016,-157.21221667,0.0002192,2]
[349989579,1737551452026,-157.21,0.0002192,2]
[349989580,1737551452036,-161.19146526,0.0002192,2]
[349989581,1737551452045,-161.19146526,0.0002192,2]
[349989582,1737551452054,-161.19146526,0.0002192,2]
[349989583,1737551452063,-161.19,0.0002192,2]
[349989584,1737551452072,-150.44536757,0.0002192,2]
[349989585,1737551452082,-150.44536757,0.0002192,2]
[349989586,1737551452091,-150.44536757,0.0002192,2]
[349989587,1737551452102,-150.44536757,0.0002192,2]
[349989588,1737551452112,-150.44536757,0.0002192,2]
[349989589,1737551452122,-150.44536757,0.0002192,2]
[349989590,1737551452132,-150.44536757,0.0002192,2]
[349989591,1737551452144,-150.44536757,0.0002192,2]
[349989592,1737551452155,-150.44536757,0.0002192,2]
[349989593,1737551452165,-150.44,0.0002192,2]
[349989594,1737551452176,-150.0,0.00021923,2]
[349989595,1737551452186,-150.0,0.0002193,2]
[349989596,1737551452195,-854.33,0.00021931,2]
[349989597,1737551452204,-150.0,0.00021949,2]
[349989598,1737551452213,-500.0,0.00021959,7]
[349989599,1737551452223,-500.0,0.00021959,7]
[349989600,1737551452232,-150.0,0.00021959,2]
[349989601,1737551452242,-150.0,0.00021967,2]
[349989602,1737551452252,-8318.0,0.00021973,2]
[349989603,1737551452262,-15222.0,0.00021973,2]
[349989604,1737551452272,-150.0,0.00021973,4]
[349989605,1737551452281,-150.0,0.00021973,4]
[349989606,1737551452291,-150.0,0.00021973,2]
[349989607,1737551452300,-150.0,0.00021973,2]
[349989608,1737551452310,-150.0,0.00021973,2]
[349989609,1737551452319,-245.3465806,0.00021973,2]
[349989610,1737551452329,-150.0,0.00021973,2]
[349989611,1737551452339,-150.0,0.00021973,2]
[349989612,1737551452348,-150.0,0.00021973,2]
[349989613,1737551452358,-500.0,0.00021973,2]
[349989614,1737551452367,-500.0,0.00021973,2]
[349989615,1737551452376,-817.15,0.00021979,2]
[349989616,1737551452385,-817.15,0.00021979,2]
[349989617,1737551452394,-817.15,0.00021979,2]
[349989618,1737551452404,-817.15,0.00021979,2]
[349989619,1737551452413,-817.15,0.00021979,2]
[349989620,1737551452424,-817.15,0.00021979,2]
[349989621,1737551452434,-817.15,0.00021979,2]
[349989622,1737551452443,-817.15,0.00021979,2]
[349989623,1737551452453,-817.15,0.00021979,2]
[349989624,1737551452463,-817.15,0.00021979,2]
[349989625,1737551452472,-500.0,0.00021979,2]
[349989626,1737551452482,-497984.4698928,0.0002198,2]
[349989627,1737551452491,-152.0,0.00021988,3]
[349989628,1737551452501,-2734.9900371,0.00021989,2]
[349989629,1737551452511,-5092.3464292,0.00021989,2]
[349989630,1737551452520,-2163.295093,0.00021989,2]
[349989631,1737551452529,-150.0,0.00021995,2]
[349989632,1737551452539,-5511.65161896,0.00022,2]
[349989633,1737551452548,-420777.49867792,0.00022,2]
[349989634,1737551452566,-9324.84929563,0.00022,2]
[349989635,1737551452577,-1024.9677062,0.00022,2]
[349989636,1737551452588,-320.94,0.00022,2]
[349989637,1737551452927,-500.0,0.00020523,2]
[349989638,1737551452937,-436.37145425,0.00020524,2]
[349989639,1737551452949,-63.62854575,0.00020524,2]
[349989640,1737551452958,-500.0,0.00020797,2]
[349989641,1737551452967,-500.0,0.00020798,2]
[349989642,1737551452977,-500.0,0.00021071,2]
[349989643,1737551452987,-500.0,0.00021072,2]
[349989644,1737551452996,-306.9925527,0.00021162,2]
[349989645,1737551453006,-460.12383517,0.00021345,2]
[349989646,1737551453015,-500.0,0.00021346,2]
[349989647,1737551453024,-298.15258715,0.0002162,2]
[349989648,1737551453037,-201.84741285,0.0002162,2]
[349989649,1737551453046,-210.81178683,0.00021894,2]
[349989650,1737551453058,-289.18821317,0.00021894,2]
[349989651,1737551453067,-564460.21159779,0.00022,2]
[349989652,1737551453078,-12674.517128,0.00022,2]
[349989653,1737551453230,-500.0,0.00020523,2]
[349989654,1737551453239,-500.0,0.00020524,2]
[349989655,1737551453250,-341.92,0.00020797,2]
[349989656,1737551453259,-279.77198437,0.000219,4]
[349989657,1737551453269,-753.82421033,0.00022,2]
[349989658,1737551453280,-1544.17756897,0.00022,2]
[349989659,1737551453299,-761.946407,0.00020795,2]
[349989660,1737551453308,-139.923593,0.00022,2]
[349989661,1737551453320,-1389744.17331987,0.00022,2]
[349989662,1737551453331,-10423.85732375,0.00022,2]
[349989663,1737551453342,-440544.90919949,0.00022,2]
[349989664,1737551640733,-500.0,0.00018548,2]
[349989665,1737551640755,-500.0,0.00018548,2]
[349989666,1737551640777,-988.96124269,0.00019514,2]
[349989667,1737551640798,-988.96124268,0.00019544,2]
[349989668,1737551640819,-731.61,0.00019614,2]
[349989669,1737551640842,-314.07,0.00019614,2]
[349989670,1737551640863,-200.0,0.00019614,2]
[349989671,1737551640884,-1762.30639027,0.00019614,2]
[349989672,1737551640905,-500.0,0.00019644,2]
[349989673,1737551640927,-2013.0705,0.00020016,2]
[349989674,1737551640949,-314.07,0.00020339,2]
[349989675,1737551640972,-250.0,0.00020402,2]
[349989676,1737551640994,-500.0,0.00020423,2]
[349989677,1737551641018,-500.0,0.00020423,2]
[349989678,1737551641040,-500.0,0.00020423,2]
[349989679,1737551641062,-500.0,0.00020423,2]
[349989680,1737551641087,-500.0,0.00020423,2]
[349989681,1737551641109,-500.0,0.00020423,2]
[349989682,1737551641130,-500.0,0.00020423,2]
[349989683,1737551641151,-519.19,0.00020423,2]
[349989684,1737551641173,-500.0,0.00020423,2]
[349989685,1737551641195,-500.0,0.00020423,2]
[349989686,1737551641216,-500.0,0.00020423,2]
[349989687,1737551641237,-500.0,0.00020423,2]
[349989688,1737551641259,-500.0,0.00020423,2]
[349989689,1737551641279,-500.0,0.00020423,2]
[349989690,1737551641301,-500.0,0.00020423,2]
[349989691,1737551641323,-500.0,0.00020423,2]
[349989692,1737551641345,-500.0,0.00020423,2]
[349989693,1737551641366,-117.76062436,0.00020423,2]
[349989695,1737552193567,158.7,0.00010137,2]
[349989696,1737552308365,3955.35,0.00012,2]
[349989697,1737552308401,160507.3512346,0.00012,2]
[349989698,1737552402126,-195.63601571,0.00016,2]
[349989778,1737552631696,-169.75,0.00014986,2]
[349989779,1737552631706,-791.60000627,0.00015,2]
[349989780,1737552631868,-1620.75002111,0.00015,2]
[349989781,1737552632043,-785.80703697,0.00015,2]
[349989782,1737552635969,-1218.34829219,0.00015,2]
[349989783,1737552635981,-394.75315617,0.00015899,2]
[349989793,1737552637586,-435.68106613,0.00015899,2]
[349989794,1737552637648,-1147.48826307,0.00015899,2]
[349989795,1737552637658,-14775.38803155,0.00016,2]
[349989796,1737552637667,-1762.30639027,0.00017492,2]
[349989797,1737552637680,-858.81,0.00017689,2]
[349989798,1737552637690,-500.0,0.00018548,2]
[349989799,1737552637699,-500.0,0.00018548,2]
[349989800,1737552637709,-1000.0,0.00018759,2]
[349989801,1737552637719,-1557.13,0.00018797,2]
[349989802,1737552637729,-250.0,0.00018825,2]
[349989803,1737552637739,-10777.67630776,0.00019,2]
[349989804,1737552637748,-340.11239134,0.0001901,7]
[349989805,1737552637758,-200.0,0.00019162,2]
[349989806,1737552637768,-1798.55,0.00019185,2]
[349989807,1737552637778,-314.07,0.00019234,2]
[349989808,1737552637787,-2547.75,0.00019332,2]
[349989809,1737552637797,-22825.5163067,0.00019333,2]
[349989810,1737552637810,-1074.4836933,0.00019333,2]
[349989811,1737552637820,-688.42,0.00019445,2]
[349989812,1737552637830,-367.25,0.00019454,2]
[349989813,1737552637840,-250.0,0.00019527,2]
[349989814,1737552637849,-254.09,0.00019601,2]
[349989815,1737552637860,-168.17,0.00019614,2]
[349989816,1737552637871,-200.0,0.00019614,2]
[349989817,1737552637882,-250.0,0.00019614,2]
[349989818,1737552637892,-3090.58187999,0.00019639,2]
[349989819,1737552637912,-1466.31812001,0.00019639,2]
[349989820,1737552637922,-500.0,0.00019644,2]
[349989821,1737552637933,-155.24,0.00019726,30]
[349989822,1737552637942,-500.0,0.00019743,2]
[349989823,1737552637952,-611.59256012,0.000198,2]
[349989824,1737552637962,-250.0,0.0001982,2]
[349989825,1737552637972,-1761.34931987,0.000199,7]
[349989826,1737552637984,-2881.80743019,0.000199,7]
[349989829,1737552638000,-1072.14,0.000199,7]
[349989830,1737552638015,-9835.04320659,0.000199,7]
[349989833,1737552641670,-306.90234595,0.000199,7]
[349989834,1737552641730,-957.12703407,0.000199,7]
[349989835,1737552641789,-1814.97716013,0.000199,7]
[349989849,1737552642720,-5220.03143012,0.000199,7]
[349989850,1737552642833,-526.29553001,0.000199,7]
[349989851,1737552642880,-21.73734025,0.000199,7]
[349989852,1737552642948,-410.0992,0.000199,7]
[349989853,1737552642960,-57644.4341181,0.000199,7]
[349989854,1737552642969,-314.07,0.00019945,2]
[349989855,1737552642978,-858.81,0.00019953,2]
[349989856,1737552642988,-600.0,0.0002,2]
[349989857,1737552642997,-35011.72869946,0.0002,2]
[349989858,1737552643006,-611.59256011,0.00020033,2]
[349989859,1737552643015,-199.67,0.00020062,2]
[349989860,1737552643024,-611.59256011,0.00020267,2]
[349989861,1737552643033,-2013.0705,0.00020323,2]
[349989862,1737552643042,-1000.0,0.00020422,15]
[349989863,1737552643051,-1343.588,0.00020422,2]
[349989864,1737552643061,-500.0,0.00020423,2]
[349989865,1737552643070,-500.0,0.00020423,2]
[349989866,1737552643079,-500.0,0.00020423,2]
[349989867,1737552643088,-500.0,0.00020423,2]
[349989868,1737552643098,-500.0,0.00020423,2]
[349989869,1737552643107,-500.0,0.00020423,2]
[349989870,1737552643117,-500.0,0.00020423,2]
[349989871,1737552643126,-500.0,0.00020423,2]
[349989872,1737552643136,-500.0,0.00020423,2]
[349989873,1737552643145,-500.0,0.00020423,2]
[349989874,1737552643155,-500.0,0.00020423,2]
[349989875,1737552643164,-500.0,0.00020423,2]
[349989876,1737552643173,-500.0,0.00020423,2]
[349989877,1737552643182,-500.0,0.00020423,2]
[349989878,1737552643194,-500.0,0.00020423,2]
[349989879,1737552643204,-500.0,0.00020423,2]
[349989880,1737552643217,-500.0,0.00020423,2]
[349989881,1737552643227,-500.0,0.00020423,2]
[349989882,1737552643236,-500.0,0.00020423,2]
[349989883,1737552643246,-500.0,0.00020423,2]
[349989884,1737552643256,-500.0,0.00020423,2]
[349989885,1737552643265,-500.0,0.00020423,2]
[349989886,1737552643275,-500.0,0.00020423,2]
[349989887,1737552643285,-500.0,0.00020423,2]
[349989888,1737552643294,-500.0,0.00020423,2]
[349989889,1737552643304,-500.0,0.00020423,2]
[349989890,1737552643313,-500.0,0.00020423,2]
[349989891,1737552643322,-500.0,0.00020423,2]
[349989892,1737552643331,-500.0,0.00020423,2]
[349989893,1737552643341,-500.0,0.00020423,2]
[349989894,1737552643351,-500.0,0.00020423,2]
[349989895,1737552643361,-500.0,0.00020423,2]
[349989896,1737552643370,-500.0,0.00020423,2]
[349989897,1737552643381,-500.0,0.00020423,2]
[349989898,1737552643391,-500.0,0.00020423,2]
[349989899,1737552643401,-500.0,0.00020423,2]
[349989900,1737552643419,-500.0,0.00020423,2]
[349989901,1737552643433,-500.0,0.00020423,2]
[349989902,1737552643444,-500.0,0.00020423,2]
[349989903,1737552643454,-500.0,0.00020423,2]
[349989904,1737552643463,-500.0,0.00020423,2]
[349989905,1737552643473,-500.0,0.00020423,2]
[349989906,1737552643483,-500.0,0.00020423,2]
[349989907,1737552643491,-150.38541364,0.00020423,2]
[349989908,1737552643501,-611.59256011,0.000205,2]
[349989909,1737552643510,-500.0,0.00020523,2]
[349989910,1737552643519,-400.0,0.00020523,2]
[349989911,1737552643528,-500.0,0.00020523,2]
[349989912,1737552643537,-500.0,0.00020523,2]
[349989913,1737552643546,-500.0,0.00020523,2]
[349989914,1737552643556,-500.0,0.00020523,2]
[349989915,1737552643565,-500.0,0.00020523,2]
[349989916,1737552643575,-500.0,0.00020523,2]
[349989917,1737552643584,-500.0,0.00020523,2]
[349989918,1737552643593,-502.23529755,0.00020523,2]
[349989919,1737552643603,-500.0,0.00020523,2]
[349989920,1737552643613,-211.83412556,0.00020524,2]
[349989921,1737552643622,-501.22100309,0.00020524,2]
[349989922,1737552643632,-500.0,0.00020524,2]
[349989923,1737552643642,-500.0,0.00020524,2]
[349989924,1737552643652,-500.0,0.00020524,2]
[349989925,1737552643661,-500.0,0.00020524,2]
[349989926,1737552643671,-314.07,0.00020657,2]
[349989927,1737552643680,-500.0,0.00020696,2]
[349989928,1737552643692,-204.28245583,0.00020696,2]
[349989929,1737552643701,-500.0,0.00020697,2]
[349989930,1737552643711,-500.0,0.00020697,2]
[349989931,1737552643720,-500.0,0.00020697,2]
[349989932,1737552643730,-464.48266129,0.00020697,2]
[349989933,1737552643740,-500.0,0.00020697,2]
[349989934,1737552643750,-196.30888542,0.00020697,2]
[349989935,1737552643760,-500.0,0.00020697,2]
[349989936,1737552643769,-500.0,0.00020697,2]
[349989937,1737552643778,-500.0,0.00020697,2]
[349989938,1737552643788,-500.0,0.00020697,2]
[349989939,1737552643797,-500.0,0.00020697,2]
[349989940,1737552643806,-500.0,0.00020697,2]
[349989941,1737552643815,-500.0,0.00020697,2]
[349989942,1737552643824,-500.0,0.00020697,2]
[349989943,1737552643834,-500.0,0.00020697,2]
[349989944,1737552643843,-500.0,0.00020697,2]
[349989945,1737552643852,-500.0,0.00020697,2]
[349989947,1737552643861,-500.0,0.00020697,2]
[349989949,1737552643870,-500.0,0.00020697,2]
[349989951,1737552643879,-500.0,0.00020697,2]
[349989952,1737552643889,-500.0,0.00020697,2]
[349989953,1737552643898,-500.0,0.00020697,2]
[349989954,1737552643907,-500.0,0.00020697,2]
[349989955,1737552643916,-500.0,0.00020697,2]
[349989956,1737552643925,-500.0,0.00020697,2]
[349989957,1737552643936,-500.0,0.00020697,2]
[349989958,1737552643945,-500.0,0.00020697,2]
[349989959,1737552643955,-500.0,0.00020697,2]
[349989960,1737552643964,-500.0,0.00020697,2]
[349989961,1737552643973,-500.0,0.00020697,2]
[349989962,1737552643982,-171.65,0.00020707,2]
[349989963,1737552643991,-611.59256011,0.00020733,2]
[349989964,1737552644000,-500.0,0.0002074,2]
[349989965,1737552644010,-500.0,0.0002074,2]
[349989966,1737552644019,-2438.55442485,0.00020795,2]
[349989967,1737552644028,-1219.27721243,0.00020795,2]
[349989968,1737552644038,-500.0,0.00020797,2]
[349989969,1737552644046,-500.0,0.00020797,2]
[349989970,1737552644056,-500.0,0.00020797,2]
[349989971,1737552644065,-500.0,0.00020797,2]
[349989972,1737552644074,-500.0,0.00020797,2]
[349989973,1737552644084,-500.0,0.00020797,2]
[349989974,1737552644093,-444.83458284,0.00020798,2]
[349989975,1737552644102,-500.0,0.00020798,2]
[349989976,1737552644111,-1272.44624098,0.00020799,2]
[349989977,1737552644120,-307.11194834,0.000208,2]
[349989978,1737552644129,-275.66988379,0.00020814,2]
[349989979,1737552644137,-1272.44624098,0.00020814,2]
[349989980,1737552644147,-200.0,0.00020824,2]
[349989981,1737552644156,-2115.21588608,0.0002084,2]
[349989982,1737552644165,-2438.55442485,0.00020847,2]
[349989983,1737552644174,-200.0,0.00020853,2]
[349989984,1737552644183,-2115.21588608,0.00020863,2]
[349989985,1737552644193,-2115.21588608,0.00020867,2]
[349989986,1737552644203,-289.05026914,0.0002087,2]
[349989987,1737552644212,-5000.0,0.0002087,2]
[349989988,1737552644223,-275.66988379,0.00020873,2]
[349989989,1737552644233,-720.2,0.00020877,2]
[349989990,1737552644242,-1085.31,0.00020877,2]
[349989991,1737552644251,-647.47,0.00020877,2]
[349989992,1737552644260,-195.52,0.00020877,2]
[349989993,1737552644270,-500.0,0.00020877,2]
[349989994,1737552644280,-500.0,0.00020877,2]
[349989995,1737552644289,-569.35,0.00020877,2]
[349989996,1737552644300,-553.83,0.00020877,2]
[349989997,1737552644309,-809.31,0.00020877,2]
[349989998,1737552644318,-500.0,0.00020877,2]
[349989999,1737552644327,-500.0,0.00020877,2]
[349990000,1737552644336,-500.0,0.00020877,2]
[349990001,1737552644345,-1135.24,0.00020877,2]
[349990002,1737552644355,-500.0,0.00020877,2]
[349990003,1737552644364,-702.71,0.00020877,2]
[349990004,1737552644374,-1457.2,0.00020877,2]
[349990005,1737552644384,-1106.05,0.00020877,2]
[349990006,1737552644393,-857.69,0.00020877,2]
[349990007,1737552644402,-825.32,0.00020877,2]
[349990008,1737552644411,-500.0,0.00020877,2]
[349990009,1737552644421,-549.73,0.00020877,2]
[349990010,1737552644430,-509.62,0.00020877,2]
[349990011,1737552644442,-500.0,0.00020877,2]
[349990012,1737552644451,-506.82,0.00020877,2]
[349990013,1737552644460,-966.04,0.00020877,2]
[349990014,1737552644470,-1179.67,0.00020877,2]
[349990015,1737552644479,-620.8,0.00020877,2]
[349990016,1737552644488,-500.0,0.00020877,2]
[349990017,1737552644498,-522.07,0.00020877,2]
[349990018,1737552644508,-672.63,0.00020877,2]
[349990019,1737552644517,-1364.14,0.00020877,2]
[349990020,1737552644527,-500.0,0.00020877,2]
[349990021,1737552644536,-500.0,0.00020877,2]
[349990022,1737552644545,-500.0,0.00020877,2]
[349990023,1737552644555,-500.0,0.00020877,2]
[349990024,1737552644564,-658.57,0.00020877,2]
[349990025,1737552644573,-538.19,0.00020877,2]
[349990026,1737552644583,-1463.31,0.00020877,2]
[349990027,1737552644591,-500.0,0.00020877,2]
[349990028,1737552644601,-998.87,0.00020877,2]
[349990029,1737552644610,-500.0,0.00020877,2]
[349990030,1737552644619,-500.0,0.00020878,2]
[349990031,1737552644629,-500.0,0.00020878,2]
[349990032,1737552644638,-500.0,0.00020878,2]
[349990033,1737552644647,-500.0,0.00020878,2]
[349990034,1737552644656,-500.0,0.00020878,2]
[349990035,1737552644666,-500.0,0.00020878,2]
[349990036,1737552644675,-519.19,0.00020878,2]
[349990037,1737552644684,-500.0,0.00020878,2]
[349990038,1737552644694,-500.0,0.00020878,2]
[349990039,1737552644703,-500.0,0.00020878,2]
[349990040,1737552644712,-500.0,0.00020878,2]
[349990041,1737552644721,-500.0,0.00020878,2]
[349990042,1737552644731,-500.0,0.00020878,2]
[349990043,1737552644740,-500.0,0.00020878,2]
[349990044,1737552644750,-500.0,0.00020878,2]